Department family,Entity,Date,Expense type,Expense area,Supplier,Transaction number,Amount
Department of Health,Leicestershire Partnership NHS Trust,01/09/21,Computer License  Fees,Covid Vaccination Workforce Bureau,SOFTCAT PLC,INV03106264,30049.20
Department of Health,Leicestershire Partnership NHS Trust,02/09/21,PropCo Estates Management,Melton Mowbray Hospital (previously St. Mary's) (PROPCO),NHS PROPERTY SERVICES LTD,NAVSC05242,-49837.15
Department of Health,Leicestershire Partnership NHS Trust,02/09/21,Unitary Payment,"The Agnes Unit (AKA Assessment and Treatment Centre) (P85, LPT)",ARDEN PARTNERSHIP (LEICESTER),SI0078,121261.97
Department of Health,Leicestershire Partnership NHS Trust,02/09/21,Payroll Deductions -Salary Sacrifice Cars Scheme,Balance Sheet Collection,TUSKER,51184,30866.83
Department of Health,Leicestershire Partnership NHS Trust,02/09/21,Rent,Bridge Park Plaza - First Floor (LPT),RAYNSWAY PROPERTIES LTD,INV-2306,80507.52
Department of Health,Leicestershire Partnership NHS Trust,02/09/21,NURSE - BAND 2 - AGENCY,Beechwood Ward,HCL NURSING,HNSI0000773,4111.92
Department of Health,Leicestershire Partnership NHS Trust,02/09/21,NURSE - BAND 5 - AGENCY,Beechwood Ward,HCL NURSING,HNSI0000773,2959.32
Department of Health,Leicestershire Partnership NHS Trust,02/09/21,NURSE - BAND 5 - AGENCY,City Planned Care - East,HCL NURSING,HNSI0000773,9760.55
Department of Health,Leicestershire Partnership NHS Trust,02/09/21,NURSE - BAND 5 - AGENCY,City Planned Care - West,HCL NURSING,HNSI0000773,14490.56
Department of Health,Leicestershire Partnership NHS Trust,02/09/21,NURSE - BAND 2 - AGENCY,Clarendon Ward,HCL NURSING,HNSI0000773,3318.78
Department of Health,Leicestershire Partnership NHS Trust,02/09/21,NURSE - BAND 5 - AGENCY,Clarendon Ward,HCL NURSING,HNSI0000773,9779.54
Department of Health,Leicestershire Partnership NHS Trust,02/09/21,NURSE - BAND 2 - AGENCY,Coalville Snibston Ward,HCL NURSING,HNSI0000773,3117.27
Department of Health,Leicestershire Partnership NHS Trust,02/09/21,NURSE - BAND 5 - AGENCY,Coalville Snibston Ward,HCL NURSING,HNSI0000773,3473.36
Department of Health,Leicestershire Partnership NHS Trust,02/09/21,NURSE - BAND 2 - AGENCY,Coalville Ward 2,HCL NURSING,HNSI0000773,758.43
Department of Health,Leicestershire Partnership NHS Trust,02/09/21,NURSE - BAND 5 - AGENCY,Coalville Ward 2,HCL NURSING,HNSI0000773,799.55
Department of Health,Leicestershire Partnership NHS Trust,02/09/21,NURSE - BAND 2 - AGENCY,Dalgliesh Ward,HCL NURSING,HNSI0000773,4135.07
Department of Health,Leicestershire Partnership NHS Trust,02/09/21,NURSE - BAND 5 - AGENCY,Dalgliesh Ward,HCL NURSING,HNSI0000773,2155.70
Department of Health,Leicestershire Partnership NHS Trust,02/09/21,NURSE - BAND 2 - AGENCY,H&B Comm Hosp East Ward,HCL NURSING,HNSI0000773,2507.79
Department of Health,Leicestershire Partnership NHS Trust,02/09/21,NURSE - BAND 5 - AGENCY,H&B Comm Hosp East Ward,HCL NURSING,HNSI0000773,5268.50
Department of Health,Leicestershire Partnership NHS Trust,02/09/21,NURSE - BAND 2 - AGENCY,H&B Comm Hosp North Ward,HCL NURSING,HNSI0000773,7895.64
Department of Health,Leicestershire Partnership NHS Trust,02/09/21,NURSE - BAND 5 - AGENCY,H&B Comm Hosp North Ward,HCL NURSING,HNSI0000773,2520.27
Department of Health,Leicestershire Partnership NHS Trust,02/09/21,NURSE - BAND 2 - AGENCY,Lough Swithland Ward,HCL NURSING,HNSI0000773,213.26
Department of Health,Leicestershire Partnership NHS Trust,02/09/21,NURSE - BAND 5 - AGENCY,Lough Swithland Ward,HCL NURSING,HNSI0000773,900.90
Department of Health,Leicestershire Partnership NHS Trust,02/09/21,NURSE - BAND 2 - AGENCY,Rutland Ward Nursing,HCL NURSING,HNSI0000773,1721.84
Department of Health,Leicestershire Partnership NHS Trust,02/09/21,NURSE - BAND 5 - AGENCY,Rutland Ward Nursing,HCL NURSING,HNSI0000773,2724.05
Department of Health,Leicestershire Partnership NHS Trust,02/09/21,NURSE - BAND 2 - AGENCY,St Lukes Stroke Ward,HCL NURSING,HNSI0000773,1624.68
Department of Health,Leicestershire Partnership NHS Trust,02/09/21,NURSE - BAND 5 - AGENCY,St Lukes Stroke Ward,HCL NURSING,HNSI0000773,812.44
Department of Health,Leicestershire Partnership NHS Trust,02/09/21,NURSE - BAND 2 - AGENCY,St Lukes Ward 3,HCL NURSING,HNSI0000773,213.26
Department of Health,Leicestershire Partnership NHS Trust,02/09/21,NURSE - BAND 5 - AGENCY,St Lukes Ward 3,HCL NURSING,HNSI0000773,3527.22
Department of Health,Leicestershire Partnership NHS Trust,02/09/21,NURSE - BAND 2 - AGENCY,Wakerley Ward,HCL NURSING,HNSI0000773,7146.67
Department of Health,Leicestershire Partnership NHS Trust,02/09/21,NURSE - BAND 5 - AGENCY,Wakerley Ward,HCL NURSING,HNSI0000773,6343.86
Department of Health,Leicestershire Partnership NHS Trust,02/09/21,Services / Recharges from NHS Trusts,Inter Unit I & E Distribution,UHL NHS TRUST (RWE),L0253175,144923.71
Department of Health,Leicestershire Partnership NHS Trust,02/09/21,NURSE - BAND 2 - AGENCY,Beechwood Ward,HCL NURSING,HNSI0000777,2768.89
Department of Health,Leicestershire Partnership NHS Trust,02/09/21,NURSE - BAND 5 - AGENCY,Beechwood Ward,HCL NURSING,HNSI0000777,974.07
Department of Health,Leicestershire Partnership NHS Trust,02/09/21,NURSE - BAND 3 - AGENCY,CHS Phlebotomy Service,HCL NURSING,HNSI0000777,351.43
Department of Health,Leicestershire Partnership NHS Trust,02/09/21,NURSE - BAND 5 - AGENCY,City Planned Care - East,HCL NURSING,HNSI0000777,12838.74
Department of Health,Leicestershire Partnership NHS Trust,02/09/21,NURSE - BAND 5 - AGENCY,City Planned Care - West,HCL NURSING,HNSI0000777,14505.01
Department of Health,Leicestershire Partnership NHS Trust,02/09/21,NURSE - BAND 2 - AGENCY,Clarendon Ward,HCL NURSING,HNSI0000777,3933.35
Department of Health,Leicestershire Partnership NHS Trust,02/09/21,NURSE - BAND 5 - AGENCY,Clarendon Ward,HCL NURSING,HNSI0000777,4995.90
Department of Health,Leicestershire Partnership NHS Trust,02/09/21,NURSE - BAND 2 - AGENCY,Coalville Snibston Ward,HCL NURSING,HNSI0000777,1460.14
Department of Health,Leicestershire Partnership NHS Trust,02/09/21,NURSE - BAND 5 - AGENCY,Coalville Snibston Ward,HCL NURSING,HNSI0000777,4726.05
Department of Health,Leicestershire Partnership NHS Trust,02/09/21,NURSE - BAND 2 - AGENCY,Coalville Ward 2,HCL NURSING,HNSI0000777,823.25
Department of Health,Leicestershire Partnership NHS Trust,02/09/21,NURSE - BAND 5 - AGENCY,Coalville Ward 2,HCL NURSING,HNSI0000777,1294.24
Department of Health,Leicestershire Partnership NHS Trust,02/09/21,NURSE - BAND 2 - AGENCY,Dalgliesh Ward,HCL NURSING,HNSI0000777,3339.17
Department of Health,Leicestershire Partnership NHS Trust,02/09/21,NURSE - BAND 5 - AGENCY,Dalgliesh Ward,HCL NURSING,HNSI0000777,2908.66
Department of Health,Leicestershire Partnership NHS Trust,02/09/21,NURSE - BAND 2 - AGENCY,H&B Comm Hosp East Ward,HCL NURSING,HNSI0000777,5167.92
Department of Health,Leicestershire Partnership NHS Trust,02/09/21,NURSE - BAND 5 - AGENCY,H&B Comm Hosp East Ward,HCL NURSING,HNSI0000777,3053.12
Department of Health,Leicestershire Partnership NHS Trust,02/09/21,NURSE - BAND 2 - AGENCY,H&B Comm Hosp North Ward,HCL NURSING,HNSI0000777,6777.13
Department of Health,Leicestershire Partnership NHS Trust,02/09/21,NURSE - BAND 5 - AGENCY,H&B Comm Hosp North Ward,HCL NURSING,HNSI0000777,2962.26
Department of Health,Leicestershire Partnership NHS Trust,02/09/21,NURSE - BAND 5 - AGENCY,Lough Swithland Ward,HCL NURSING,HNSI0000777,3914.92
Department of Health,Leicestershire Partnership NHS Trust,02/09/21,NURSE - BAND 2 - AGENCY,Rutland Ward Nursing,HCL NURSING,HNSI0000777,1721.91
Department of Health,Leicestershire Partnership NHS Trust,02/09/21,NURSE - BAND 5 - AGENCY,Rutland Ward Nursing,HCL NURSING,HNSI0000777,799.55
Department of Health,Leicestershire Partnership NHS Trust,02/09/21,NURSE - BAND 2 - AGENCY,St Lukes Stroke Ward,HCL NURSING,HNSI0000777,1094.64
Department of Health,Leicestershire Partnership NHS Trust,02/09/21,NURSE - BAND 5 - AGENCY,St Lukes Stroke Ward,HCL NURSING,HNSI0000777,4315.12
Department of Health,Leicestershire Partnership NHS Trust,02/09/21,NURSE - BAND 5 - AGENCY,St Lukes Ward 3,HCL NURSING,HNSI0000777,1402.59
Department of Health,Leicestershire Partnership NHS Trust,02/09/21,NURSE - BAND 2 - AGENCY,Wakerley Ward,HCL NURSING,HNSI0000777,7405.98
Department of Health,Leicestershire Partnership NHS Trust,02/09/21,NURSE - BAND 5 - AGENCY,Wakerley Ward,HCL NURSING,HNSI0000777,6057.69
Department of Health,Leicestershire Partnership NHS Trust,03/09/21,External Data Processing / Storage,Records & information Governance,H COATES LTD/TA C&V DATA,4006352,30904.50
Department of Health,Leicestershire Partnership NHS Trust,03/09/21,Computer License  Fees,Information Services,PHOENIX SOFTWARE LTD,OP/I907337,537699.60
Department of Health,Leicestershire Partnership NHS Trust,03/09/21,Med Trainees - FY1,Medical Trainees,UHL NHS TRUST (RWE),L0253177,29898.80
Department of Health,Leicestershire Partnership NHS Trust,07/09/21,GP IT Expenditure,Area Team,SYNTAX CONSULTANCY LTD,1291,42000.00
Department of Health,Leicestershire Partnership NHS Trust,07/09/21,GP IT Expenditure,Area Team,SYNTAX CONSULTANCY LTD,1290,42000.00
Department of Health,Leicestershire Partnership NHS Trust,07/09/21,GP IT Expenditure,Area Team,SYNTAX CONSULTANCY LTD,1289,42000.00
Department of Health,Leicestershire Partnership NHS Trust,07/09/21,HR / Payroll Services,HR Employment Services,LINCOLNSHIRE PART NHSFT(RP7),2000021448,29360.83
Department of Health,Leicestershire Partnership NHS Trust,08/09/21,Drugs,Adult City Drugs,JANSSEN-CILAG LTD,930763289,10946.72
Department of Health,Leicestershire Partnership NHS Trust,08/09/21,Drugs,Adult County Drugs,JANSSEN-CILAG LTD,930763289,16420.09
Department of Health,Leicestershire Partnership NHS Trust,08/09/21,Healthcare Services / Recharges from Non-NHS Bodies,Adult Eating Disorder Collaborative,RIVERDALE GRANGE LIMITED,830,55000.00
Department of Health,Leicestershire Partnership NHS Trust,09/09/21,Computer Hardware,HIS Management Team,ETHICAL HC CONS CIC,380,44242.80
Department of Health,Leicestershire Partnership NHS Trust,09/09/21,Insurance Costs,Chief Executives Office,NHS LITIGATION AUTHORITY,SICX406512,165217.80
Department of Health,Leicestershire Partnership NHS Trust,09/09/21,Network Costs - WAN Maint,HIS Infrastructure,VIRGIN MEDIA BUSINESS,262421-185,37915.09
Department of Health,Leicestershire Partnership NHS Trust,09/09/21,Network Costs - WAN Maint,HIS Infrastructure,VIRGIN MEDIA BUSINESS,262421-184,37915.09
Department of Health,Leicestershire Partnership NHS Trust,13/09/21,Computer Hardware,Non-Medical Education & Training (NMET),DELL COMPUTERS,7402741387,26730.00
Department of Health,Leicestershire Partnership NHS Trust,13/09/21,NURSE - BAND 2 - AGENCY,Beechwood Ward,HCL NURSING,HNSI0000784,3797.81
Department of Health,Leicestershire Partnership NHS Trust,13/09/21,NURSE - BAND 5 - AGENCY,Beechwood Ward,HCL NURSING,HNSI0000784,3505.16
Department of Health,Leicestershire Partnership NHS Trust,13/09/21,NURSE - BAND 3 - AGENCY,CHS Phlebotomy Service,HCL NURSING,HNSI0000784,238.44
Department of Health,Leicestershire Partnership NHS Trust,13/09/21,NURSE - BAND 5 - AGENCY,City Planned Care - East,HCL NURSING,HNSI0000784,14128.12
Department of Health,Leicestershire Partnership NHS Trust,13/09/21,NURSE - BAND 5 - AGENCY,City Planned Care - West,HCL NURSING,HNSI0000784,10154.31
Department of Health,Leicestershire Partnership NHS Trust,13/09/21,NURSE - BAND 2 - AGENCY,Clarendon Ward,HCL NURSING,HNSI0000784,4281.79
Department of Health,Leicestershire Partnership NHS Trust,13/09/21,NURSE - BAND 5 - AGENCY,Clarendon Ward,HCL NURSING,HNSI0000784,5176.36
Department of Health,Leicestershire Partnership NHS Trust,13/09/21,NURSE - BAND 2 - AGENCY,Coalville Snibston Ward,HCL NURSING,HNSI0000784,2219.03
Department of Health,Leicestershire Partnership NHS Trust,13/09/21,NURSE - BAND 5 - AGENCY,Coalville Snibston Ward,HCL NURSING,HNSI0000784,2935.58
Department of Health,Leicestershire Partnership NHS Trust,13/09/21,NURSE - BAND 2 - AGENCY,Coalville Ward 2,HCL NURSING,HNSI0000784,1267.46
Department of Health,Leicestershire Partnership NHS Trust,13/09/21,NURSE - BAND 5 - AGENCY,Coalville Ward 2,HCL NURSING,HNSI0000784,2274.72
Department of Health,Leicestershire Partnership NHS Trust,13/09/21,NURSE - BAND 2 - AGENCY,Dalgliesh Ward,HCL NURSING,HNSI0000784,645.98
Department of Health,Leicestershire Partnership NHS Trust,13/09/21,NURSE - BAND 5 - AGENCY,Dalgliesh Ward,HCL NURSING,HNSI0000784,386.05
Department of Health,Leicestershire Partnership NHS Trust,13/09/21,NURSE - BAND 2 - AGENCY,H&B Comm Hosp East Ward,HCL NURSING,HNSI0000784,8638.51
Department of Health,Leicestershire Partnership NHS Trust,13/09/21,NURSE - BAND 5 - AGENCY,H&B Comm Hosp East Ward,HCL NURSING,HNSI0000784,5828.89
Department of Health,Leicestershire Partnership NHS Trust,13/09/21,NURSE - BAND 2 - AGENCY,H&B Comm Hosp North Ward,HCL NURSING,HNSI0000784,5763.87
Department of Health,Leicestershire Partnership NHS Trust,13/09/21,NURSE - BAND 5 - AGENCY,H&B Comm Hosp North Ward,HCL NURSING,HNSI0000784,2342.83
Department of Health,Leicestershire Partnership NHS Trust,13/09/21,NURSE - BAND 5 - AGENCY,Lough Swithland Ward,HCL NURSING,HNSI0000784,525.35
Department of Health,Leicestershire Partnership NHS Trust,13/09/21,NURSE - BAND 2 - AGENCY,Rutland Ward Nursing,HCL NURSING,HNSI0000784,894.72
Department of Health,Leicestershire Partnership NHS Trust,13/09/21,NURSE - BAND 5 - AGENCY,Rutland Ward Nursing,HCL NURSING,HNSI0000784,1043.99
Department of Health,Leicestershire Partnership NHS Trust,13/09/21,NURSE - BAND 2 - AGENCY,St Lukes Stroke Ward,HCL NURSING,HNSI0000784,844.18
Department of Health,Leicestershire Partnership NHS Trust,13/09/21,NURSE - BAND 5 - AGENCY,St Lukes Stroke Ward,HCL NURSING,HNSI0000784,1172.29
Department of Health,Leicestershire Partnership NHS Trust,13/09/21,NURSE - BAND 2 - AGENCY,St Lukes Ward 3,HCL NURSING,HNSI0000784,1171.19
Department of Health,Leicestershire Partnership NHS Trust,13/09/21,NURSE - BAND 5 - AGENCY,St Lukes Ward 3,HCL NURSING,HNSI0000784,1845.64
Department of Health,Leicestershire Partnership NHS Trust,13/09/21,NURSE - BAND 2 - AGENCY,Wakerley Ward,HCL NURSING,HNSI0000784,3621.44
Department of Health,Leicestershire Partnership NHS Trust,13/09/21,NURSE - BAND 5 - AGENCY,Wakerley Ward,HCL NURSING,HNSI0000784,3742.18
Department of Health,Leicestershire Partnership NHS Trust,13/09/21,Nurse - Band 6 -Agency,AMH - Central Access Point,HCL NURSING,HNSI0000790,3329.28
Department of Health,Leicestershire Partnership NHS Trust,13/09/21,Nurse - Band 6 -Agency,Adult City East CMHT - Merlyn Vaz,HCL NURSING,HNSI0000790,1856.19
Department of Health,Leicestershire Partnership NHS Trust,13/09/21,Nurse - Band 6 -Agency,Adult County Charnwood CMHT - Loughborough Base,HCL NURSING,HNSI0000790,2534.39
Department of Health,Leicestershire Partnership NHS Trust,13/09/21,Nurse - Band 6 -Agency,Adult County West Leicestershire CMHT,HCL NURSING,HNSI0000790,2204.13
Department of Health,Leicestershire Partnership NHS Trust,13/09/21,NURSE - BAND 2 - AGENCY,Agnes Unit Management,HCL NURSING,HNSI0000790,21473.50
Department of Health,Leicestershire Partnership NHS Trust,13/09/21,NURSE - BAND 5 - AGENCY,Agnes Unit Management,HCL NURSING,HNSI0000790,14160.50
Department of Health,Leicestershire Partnership NHS Trust,13/09/21,NURSE - BAND 2 - AGENCY,Ashby Ward (Bradgate Unit),HCL NURSING,HNSI0000790,2038.45
Department of Health,Leicestershire Partnership NHS Trust,13/09/21,NURSE - BAND 5 - AGENCY,Ashby Ward (Bradgate Unit),HCL NURSING,HNSI0000790,571.85
Department of Health,Leicestershire Partnership NHS Trust,13/09/21,NURSE - BAND 2 - AGENCY,Aston Ward (Bradgate Unit),HCL NURSING,HNSI0000790,1587.06
Department of Health,Leicestershire Partnership NHS Trust,13/09/21,NURSE - BAND 5 - AGENCY,Aston Ward (Bradgate Unit),HCL NURSING,HNSI0000790,1237.60
Department of Health,Leicestershire Partnership NHS Trust,13/09/21,NURSE - BAND 2 - AGENCY,Beaumont Ward - Bradgate Unit,HCL NURSING,HNSI0000790,2531.91
Department of Health,Leicestershire Partnership NHS Trust,13/09/21,NURSE - BAND 5 - AGENCY,Beaumont Ward - Bradgate Unit,HCL NURSING,HNSI0000790,329.84
Department of Health,Leicestershire Partnership NHS Trust,13/09/21,NURSE - BAND 2 - AGENCY,Belvoir Psychiatric Intensive Care Unit,HCL NURSING,HNSI0000790,3835.61
Department of Health,Leicestershire Partnership NHS Trust,13/09/21,NURSE - BAND 5 - AGENCY,Belvoir Psychiatric Intensive Care Unit,HCL NURSING,HNSI0000790,3649.38
Department of Health,Leicestershire Partnership NHS Trust,13/09/21,NURSE - BAND 2 - AGENCY,Cedar (Willows),HCL NURSING,HNSI0000790,452.62
Department of Health,Leicestershire Partnership NHS Trust,13/09/21,NURSE - BAND 2 - AGENCY,Coleman Ward,HCL NURSING,HNSI0000790,10796.90
Department of Health,Leicestershire Partnership NHS Trust,13/09/21,NURSE - BAND 5 - AGENCY,Coleman Ward,HCL NURSING,HNSI0000790,10205.67
Department of Health,Leicestershire Partnership NHS Trust,13/09/21,NURSE - BAND 2 - AGENCY,Griffin Ward (HPC),HCL NURSING,HNSI0000790,1069.09
Department of Health,Leicestershire Partnership NHS Trust,13/09/21,NURSE - BAND 5 - AGENCY,Griffin Ward (HPC),HCL NURSING,HNSI0000790,1433.12
Department of Health,Leicestershire Partnership NHS Trust,13/09/21,NURSE - BAND 2 - AGENCY,Gwendolen Ward,HCL NURSING,HNSI0000790,365.61
Department of Health,Leicestershire Partnership NHS Trust,13/09/21,NURSE - BAND 2 - AGENCY,Heather Ward,HCL NURSING,HNSI0000790,1169.24
Department of Health,Leicestershire Partnership NHS Trust,13/09/21,NURSE - BAND 5 - AGENCY,Heather Ward,HCL NURSING,HNSI0000790,2055.69
Department of Health,Leicestershire Partnership NHS Trust,13/09/21,NURSE - BAND 2 - AGENCY,Kirby Ward,HCL NURSING,HNSI0000790,1781.93
Department of Health,Leicestershire Partnership NHS Trust,13/09/21,NURSE - BAND 5 - AGENCY,Kirby Ward,HCL NURSING,HNSI0000790,933.06
Department of Health,Leicestershire Partnership NHS Trust,13/09/21,Nurse - Band 6 -Agency,Liaison & Diversion - Criminal Justice,HCL NURSING,HNSI0000790,1522.92
Department of Health,Leicestershire Partnership NHS Trust,13/09/21,NURSE - BAND 2 - AGENCY,Maple Ward,HCL NURSING,HNSI0000790,277.89
Department of Health,Leicestershire Partnership NHS Trust,13/09/21,NURSE - BAND 2 - AGENCY,Mill Lodge,HCL NURSING,HNSI0000790,6528.00
Department of Health,Leicestershire Partnership NHS Trust,13/09/21,NURSE - BAND 5 - AGENCY,Mill Lodge,HCL NURSING,HNSI0000790,2417.34
Department of Health,Leicestershire Partnership NHS Trust,13/09/21,NURSE - BAND 2 - AGENCY,Phoenix Ward (HPC),HCL NURSING,HNSI0000790,501.47
Department of Health,Leicestershire Partnership NHS Trust,13/09/21,NURSE - BAND 5 - AGENCY,Phoenix Ward (HPC),HCL NURSING,HNSI0000790,998.32
Department of Health,Leicestershire Partnership NHS Trust,13/09/21,NURSE - BAND 5 - AGENCY,Place Of Safety Assessment Unit,HCL NURSING,HNSI0000790,1482.38
Department of Health,Leicestershire Partnership NHS Trust,13/09/21,NURSE - BAND 2 - AGENCY,Stewart House,HCL NURSING,HNSI0000790,881.76
Department of Health,Leicestershire Partnership NHS Trust,13/09/21,NURSE - BAND 2 - AGENCY,Thornton Ward - Bradgate Unit,HCL NURSING,HNSI0000790,1640.19
Department of Health,Leicestershire Partnership NHS Trust,13/09/21,NURSE - BAND 5 - AGENCY,Thornton Ward - Bradgate Unit,HCL NURSING,HNSI0000790,329.84
Department of Health,Leicestershire Partnership NHS Trust,13/09/21,NURSE - BAND 2 - AGENCY,Watermead Ward (Bradgate Unit),HCL NURSING,HNSI0000790,2159.40
Department of Health,Leicestershire Partnership NHS Trust,13/09/21,NURSE - BAND 5 - AGENCY,Watermead Ward (Bradgate Unit),HCL NURSING,HNSI0000790,1248.10
Department of Health,Leicestershire Partnership NHS Trust,13/09/21,NURSE - BAND 2 - AGENCY,Welford Ward,HCL NURSING,HNSI0000790,2540.23
Department of Health,Leicestershire Partnership NHS Trust,13/09/21,Nurse - Band 6 -Agency,CAMHS HUB / CAP,HCL SOCIAL CARE,HWSI0000800,18562.99
Department of Health,Leicestershire Partnership NHS Trust,13/09/21,Nurse - Band 6 -Agency,CAMHS Waiting List Monies,HCL SOCIAL CARE,HWSI0000800,18936.57
Department of Health,Leicestershire Partnership NHS Trust,13/09/21,Nurse - Band 6 -Agency,Crisis Response and Home Treatment,HCL SOCIAL CARE,HWSI0000800,2087.50
Department of Health,Leicestershire Partnership NHS Trust,13/09/21,NURSE - BAND 2 - AGENCY,CAMHS Inpatient Service,HCL NURSING,HNSI0000792,27468.56
Department of Health,Leicestershire Partnership NHS Trust,13/09/21,Nurse - Band 6 -Agency,CAMHS Waiting List Monies,HCL NURSING,HNSI0000792,9683.21
Department of Health,Leicestershire Partnership NHS Trust,13/09/21,Nurse - Band 6 -Agency,CAMHS Young Peoples Team,HCL NURSING,HNSI0000792,1377.01
Department of Health,Leicestershire Partnership NHS Trust,13/09/21,NURSE - BAND 2 - AGENCY,Langley Ward ED Inpatient Service,HCL NURSING,HNSI0000792,460.86
Department of Health,Leicestershire Partnership NHS Trust,13/09/21,NURSE - BAND 5 - AGENCY,Langley Ward ED Inpatient Service,HCL NURSING,HNSI0000792,2032.12
Department of Health,Leicestershire Partnership NHS Trust,13/09/21,Nurse - Band 6 -Agency,CAMHS HUB / CAP,HCL SOCIAL CARE,HWSI0000772,9152.40
Department of Health,Leicestershire Partnership NHS Trust,13/09/21,Nurse - Band 6 -Agency,CAMHS Waiting List Monies,HCL SOCIAL CARE,HWSI0000772,16632.35
Department of Health,Leicestershire Partnership NHS Trust,13/09/21,Nurse - Band 6 -Agency,Crisis Response and Home Treatment,HCL SOCIAL CARE,HWSI0000772,1934.86
Department of Health,Leicestershire Partnership NHS Trust,13/09/21,Nurse - Band 6 -Agency,CAMHS HUB / CAP,HCL SOCIAL CARE,HWSI0000775,12102.13
Department of Health,Leicestershire Partnership NHS Trust,13/09/21,Nurse - Band 6 -Agency,CAMHS Waiting List Monies,HCL SOCIAL CARE,HWSI0000775,20020.76
Department of Health,Leicestershire Partnership NHS Trust,13/09/21,Nurse - Band 6 -Agency,Crisis Response and Home Treatment,HCL SOCIAL CARE,HWSI0000775,1934.86
Department of Health,Leicestershire Partnership NHS Trust,13/09/21,NURSE - BAND 2 - AGENCY,CAMHS Inpatient Service,HCL NURSING,HNSI0000778,15055.47
Department of Health,Leicestershire Partnership NHS Trust,13/09/21,NURSE - BAND 5 - AGENCY,CAMHS Inpatient Service,HCL NURSING,HNSI0000778,504.65
Department of Health,Leicestershire Partnership NHS Trust,13/09/21,Nurse - Band 6 -Agency,CAMHS Waiting List Monies,HCL NURSING,HNSI0000778,6250.82
Department of Health,Leicestershire Partnership NHS Trust,13/09/21,Nurse - Band 6 -Agency,CAMHS Young Peoples Team,HCL NURSING,HNSI0000778,1377.01
Department of Health,Leicestershire Partnership NHS Trust,13/09/21,NURSE - BAND 2 - AGENCY,Langley Ward ED Inpatient Service,HCL NURSING,HNSI0000778,731.36
Department of Health,Leicestershire Partnership NHS Trust,13/09/21,NURSE - BAND 5 - AGENCY,Langley Ward ED Inpatient Service,HCL NURSING,HNSI0000778,1344.91
Department of Health,Leicestershire Partnership NHS Trust,13/09/21,Nurse - Band 6 -Agency,AMH - Central Access Point,HCL NURSING,HNSI0000783,5214.69
Department of Health,Leicestershire Partnership NHS Trust,13/09/21,Nurse - Band 6 -Agency,Adult City East CMHT - Merlyn Vaz,HCL NURSING,HNSI0000783,641.98
Department of Health,Leicestershire Partnership NHS Trust,13/09/21,Nurse - Band 6 -Agency,Adult County Charnwood CMHT - Loughborough Base,HCL NURSING,HNSI0000783,2725.16
Department of Health,Leicestershire Partnership NHS Trust,13/09/21,NURSE - BAND 2 - AGENCY,Agnes Unit Management,HCL NURSING,HNSI0000783,15382.80
Department of Health,Leicestershire Partnership NHS Trust,13/09/21,NURSE - BAND 5 - AGENCY,Agnes Unit Management,HCL NURSING,HNSI0000783,11541.23
Department of Health,Leicestershire Partnership NHS Trust,13/09/21,NURSE - BAND 2 - AGENCY,Ashby Ward (Bradgate Unit),HCL NURSING,HNSI0000783,866.26
Department of Health,Leicestershire Partnership NHS Trust,13/09/21,NURSE - BAND 5 - AGENCY,Ashby Ward (Bradgate Unit),HCL NURSING,HNSI0000783,392.91
Department of Health,Leicestershire Partnership NHS Trust,13/09/21,NURSE - BAND 2 - AGENCY,Aston Ward (Bradgate Unit),HCL NURSING,HNSI0000783,638.66
Department of Health,Leicestershire Partnership NHS Trust,13/09/21,NURSE - BAND 2 - AGENCY,Beaumont Ward - Bradgate Unit,HCL NURSING,HNSI0000783,3148.49
Department of Health,Leicestershire Partnership NHS Trust,13/09/21,NURSE - BAND 5 - AGENCY,Beaumont Ward - Bradgate Unit,HCL NURSING,HNSI0000783,7379.49
Department of Health,Leicestershire Partnership NHS Trust,13/09/21,NURSE - BAND 2 - AGENCY,Belvoir Psychiatric Intensive Care Unit,HCL NURSING,HNSI0000783,6559.24
Department of Health,Leicestershire Partnership NHS Trust,13/09/21,NURSE - BAND 5 - AGENCY,Belvoir Psychiatric Intensive Care Unit,HCL NURSING,HNSI0000783,3182.47
Department of Health,Leicestershire Partnership NHS Trust,13/09/21,NURSE - BAND 2 - AGENCY,Cedar (Willows),HCL NURSING,HNSI0000783,398.32
Department of Health,Leicestershire Partnership NHS Trust,13/09/21,Nurse - Band 6 -Agency,City West CMHT MHSOP,HCL NURSING,HNSI0000783,1046.25
Department of Health,Leicestershire Partnership NHS Trust,13/09/21,NURSE - BAND 2 - AGENCY,Coleman Ward,HCL NURSING,HNSI0000783,8555.77
Department of Health,Leicestershire Partnership NHS Trust,13/09/21,NURSE - BAND 5 - AGENCY,Coleman Ward,HCL NURSING,HNSI0000783,8728.48
Department of Health,Leicestershire Partnership NHS Trust,13/09/21,NURSE - BAND 2 - AGENCY,Griffin Ward (HPC),HCL NURSING,HNSI0000783,418.75
Department of Health,Leicestershire Partnership NHS Trust,13/09/21,NURSE - BAND 5 - AGENCY,Griffin Ward (HPC),HCL NURSING,HNSI0000783,426.71
Department of Health,Leicestershire Partnership NHS Trust,13/09/21,NURSE - BAND 2 - AGENCY,Heather Ward,HCL NURSING,HNSI0000783,1386.57
Department of Health,Leicestershire Partnership NHS Trust,13/09/21,NURSE - BAND 5 - AGENCY,Heather Ward,HCL NURSING,HNSI0000783,4549.14
Department of Health,Leicestershire Partnership NHS Trust,13/09/21,NURSE - BAND 2 - AGENCY,Kirby Ward,HCL NURSING,HNSI0000783,954.58
Department of Health,Leicestershire Partnership NHS Trust,13/09/21,NURSE - BAND 5 - AGENCY,Kirby Ward,HCL NURSING,HNSI0000783,965.00
Department of Health,Leicestershire Partnership NHS Trust,13/09/21,Nurse - Band 6 -Agency,Liaison & Diversion - Criminal Justice,HCL NURSING,HNSI0000783,1608.04
Department of Health,Leicestershire Partnership NHS Trust,13/09/21,NURSE - BAND 2 - AGENCY,Maple Ward,HCL NURSING,HNSI0000783,269.49
Department of Health,Leicestershire Partnership NHS Trust,13/09/21,NURSE - BAND 2 - AGENCY,Mill Lodge,HCL NURSING,HNSI0000783,5044.35
Department of Health,Leicestershire Partnership NHS Trust,13/09/21,NURSE - BAND 5 - AGENCY,Mill Lodge,HCL NURSING,HNSI0000783,1337.75
Department of Health,Leicestershire Partnership NHS Trust,13/09/21,NURSE - BAND 2 - AGENCY,Phoenix Ward (HPC),HCL NURSING,HNSI0000783,1553.81
Department of Health,Leicestershire Partnership NHS Trust,13/09/21,NURSE - BAND 5 - AGENCY,Phoenix Ward (HPC),HCL NURSING,HNSI0000783,756.55
Department of Health,Leicestershire Partnership NHS Trust,13/09/21,NURSE - BAND 2 - AGENCY,Place Of Safety Assessment Unit,HCL NURSING,HNSI0000783,223.59
Department of Health,Leicestershire Partnership NHS Trust,13/09/21,NURSE - BAND 5 - AGENCY,Place Of Safety Assessment Unit,HCL NURSING,HNSI0000783,1783.40
Department of Health,Leicestershire Partnership NHS Trust,13/09/21,NURSE - BAND 2 - AGENCY,Thornton Ward - Bradgate Unit,HCL NURSING,HNSI0000783,618.95
Department of Health,Leicestershire Partnership NHS Trust,13/09/21,NURSE - BAND 5 - AGENCY,Thornton Ward - Bradgate Unit,HCL NURSING,HNSI0000783,426.71
Department of Health,Leicestershire Partnership NHS Trust,13/09/21,NURSE - BAND 2 - AGENCY,Watermead Ward (Bradgate Unit),HCL NURSING,HNSI0000783,2549.11
Department of Health,Leicestershire Partnership NHS Trust,13/09/21,NURSE - BAND 2 - AGENCY,Welford Ward,HCL NURSING,HNSI0000783,1725.86
Department of Health,Leicestershire Partnership NHS Trust,13/09/21,Nurse - Band 6 -Agency,AMH - Central Access Point,HCL NURSING,HNSI0000772,3246.09
Department of Health,Leicestershire Partnership NHS Trust,13/09/21,Nurse - Band 6 -Agency,Adult City East CMHT - Merlyn Vaz,HCL NURSING,HNSI0000772,1783.65
Department of Health,Leicestershire Partnership NHS Trust,13/09/21,Nurse - Band 6 -Agency,Adult County Charnwood CMHT - Loughborough Base,HCL NURSING,HNSI0000772,1377.01
Department of Health,Leicestershire Partnership NHS Trust,13/09/21,Nurse - Band 6 -Agency,Adult County West Leicestershire CMHT,HCL NURSING,HNSI0000772,1069.97
Department of Health,Leicestershire Partnership NHS Trust,13/09/21,NURSE - BAND 2 - AGENCY,Agnes Unit Management,HCL NURSING,HNSI0000772,9298.26
Department of Health,Leicestershire Partnership NHS Trust,13/09/21,NURSE - BAND 5 - AGENCY,Agnes Unit Management,HCL NURSING,HNSI0000772,12772.48
Department of Health,Leicestershire Partnership NHS Trust,13/09/21,NURSE - BAND 2 - AGENCY,Ashby Ward (Bradgate Unit),HCL NURSING,HNSI0000772,719.71
Department of Health,Leicestershire Partnership NHS Trust,13/09/21,NURSE - BAND 2 - AGENCY,Aston Ward (Bradgate Unit),HCL NURSING,HNSI0000772,739.25
Department of Health,Leicestershire Partnership NHS Trust,13/09/21,NURSE - BAND 5 - AGENCY,Aston Ward (Bradgate Unit),HCL NURSING,HNSI0000772,2030.32
Department of Health,Leicestershire Partnership NHS Trust,13/09/21,NURSE - BAND 2 - AGENCY,Beaumont Ward - Bradgate Unit,HCL NURSING,HNSI0000772,7894.89
Department of Health,Leicestershire Partnership NHS Trust,13/09/21,NURSE - BAND 5 - AGENCY,Beaumont Ward - Bradgate Unit,HCL NURSING,HNSI0000772,3032.64
Department of Health,Leicestershire Partnership NHS Trust,13/09/21,NURSE - BAND 2 - AGENCY,Belvoir Psychiatric Intensive Care Unit,HCL NURSING,HNSI0000772,1539.59
Department of Health,Leicestershire Partnership NHS Trust,13/09/21,NURSE - BAND 5 - AGENCY,Belvoir Psychiatric Intensive Care Unit,HCL NURSING,HNSI0000772,1930.14
Department of Health,Leicestershire Partnership NHS Trust,13/09/21,NURSE - BAND 2 - AGENCY,Cedar (Willows),HCL NURSING,HNSI0000772,538.97
Department of Health,Leicestershire Partnership NHS Trust,13/09/21,Nurse - Band 6 -Agency,City West CMHT MHSOP,HCL NURSING,HNSI0000772,855.97
Department of Health,Leicestershire Partnership NHS Trust,13/09/21,NURSE - BAND 2 - AGENCY,Coleman Ward,HCL NURSING,HNSI0000772,11850.20
Department of Health,Leicestershire Partnership NHS Trust,13/09/21,NURSE - BAND 5 - AGENCY,Coleman Ward,HCL NURSING,HNSI0000772,7840.79
Department of Health,Leicestershire Partnership NHS Trust,13/09/21,NURSE - BAND 2 - AGENCY,Griffin Ward (HPC),HCL NURSING,HNSI0000772,4753.58
Department of Health,Leicestershire Partnership NHS Trust,13/09/21,NURSE - BAND 5 - AGENCY,Griffin Ward (HPC),HCL NURSING,HNSI0000772,392.91
Department of Health,Leicestershire Partnership NHS Trust,13/09/21,NURSE - BAND 2 - AGENCY,Gwendolen Ward,HCL NURSING,HNSI0000772,2084.61
Department of Health,Leicestershire Partnership NHS Trust,13/09/21,NURSE - BAND 2 - AGENCY,Heather Ward,HCL NURSING,HNSI0000772,961.04
Department of Health,Leicestershire Partnership NHS Trust,13/09/21,NURSE - BAND 5 - AGENCY,Heather Ward,HCL NURSING,HNSI0000772,1634.56
Department of Health,Leicestershire Partnership NHS Trust,13/09/21,NURSE - BAND 2 - AGENCY,Kirby Ward,HCL NURSING,HNSI0000772,1968.02
Department of Health,Leicestershire Partnership NHS Trust,13/09/21,NURSE - BAND 5 - AGENCY,Kirby Ward,HCL NURSING,HNSI0000772,1469.85
Department of Health,Leicestershire Partnership NHS Trust,13/09/21,Nurse - Band 6 -Agency,Liaison & Diversion - Criminal Justice,HCL NURSING,HNSI0000772,1522.92
Department of Health,Leicestershire Partnership NHS Trust,13/09/21,NURSE - BAND 2 - AGENCY,Maple Ward,HCL NURSING,HNSI0000772,174.73
Department of Health,Leicestershire Partnership NHS Trust,13/09/21,NURSE - BAND 2 - AGENCY,Mill Lodge,HCL NURSING,HNSI0000772,4064.67
Department of Health,Leicestershire Partnership NHS Trust,13/09/21,NURSE - BAND 5 - AGENCY,Mill Lodge,HCL NURSING,HNSI0000772,3254.97
Department of Health,Leicestershire Partnership NHS Trust,13/09/21,NURSE - BAND 2 - AGENCY,Phoenix Ward (HPC),HCL NURSING,HNSI0000772,1235.07
Department of Health,Leicestershire Partnership NHS Trust,13/09/21,NURSE - BAND 5 - AGENCY,Phoenix Ward (HPC),HCL NURSING,HNSI0000772,329.84
Department of Health,Leicestershire Partnership NHS Trust,13/09/21,NURSE - BAND 2 - AGENCY,Place Of Safety Assessment Unit,HCL NURSING,HNSI0000772,572.65
Department of Health,Leicestershire Partnership NHS Trust,13/09/21,NURSE - BAND 5 - AGENCY,Place Of Safety Assessment Unit,HCL NURSING,HNSI0000772,329.84
Department of Health,Leicestershire Partnership NHS Trust,13/09/21,NURSE - BAND 2 - AGENCY,Stewart House,HCL NURSING,HNSI0000772,174.72
Department of Health,Leicestershire Partnership NHS Trust,13/09/21,NURSE - BAND 2 - AGENCY,Thornton Ward - Bradgate Unit,HCL NURSING,HNSI0000772,531.87
Department of Health,Leicestershire Partnership NHS Trust,13/09/21,NURSE - BAND 2 - AGENCY,Watermead Ward (Bradgate Unit),HCL NURSING,HNSI0000772,907.53
Department of Health,Leicestershire Partnership NHS Trust,13/09/21,NURSE - BAND 5 - AGENCY,Watermead Ward (Bradgate Unit),HCL NURSING,HNSI0000772,329.84
Department of Health,Leicestershire Partnership NHS Trust,13/09/21,NURSE - BAND 2 - AGENCY,Welford Ward,HCL NURSING,HNSI0000772,511.80
Department of Health,Leicestershire Partnership NHS Trust,13/09/21,Nurse - Band 6 -Agency,AMH - Central Access Point,HCL NURSING,HNSI0000776,5090.37
Department of Health,Leicestershire Partnership NHS Trust,13/09/21,Nurse - Band 6 -Agency,Adult City East CMHT - Merlyn Vaz,HCL NURSING,HNSI0000776,2178.99
Department of Health,Leicestershire Partnership NHS Trust,13/09/21,Nurse - Band 6 -Agency,Adult County Charnwood CMHT - Loughborough Base,HCL NURSING,HNSI0000776,3795.13
Department of Health,Leicestershire Partnership NHS Trust,13/09/21,Nurse - Band 6 -Agency,Adult County West Leicestershire CMHT,HCL NURSING,HNSI0000776,1069.97
Department of Health,Leicestershire Partnership NHS Trust,13/09/21,NURSE - BAND 2 - AGENCY,Agnes Unit Management,HCL NURSING,HNSI0000776,9771.19
Department of Health,Leicestershire Partnership NHS Trust,13/09/21,NURSE - BAND 5 - AGENCY,Agnes Unit Management,HCL NURSING,HNSI0000776,10958.13
Department of Health,Leicestershire Partnership NHS Trust,13/09/21,NURSE - BAND 2 - AGENCY,Ashby Ward (Bradgate Unit),HCL NURSING,HNSI0000776,1303.24
Department of Health,Leicestershire Partnership NHS Trust,13/09/21,NURSE - BAND 5 - AGENCY,Ashby Ward (Bradgate Unit),HCL NURSING,HNSI0000776,779.38
Department of Health,Leicestershire Partnership NHS Trust,13/09/21,NURSE - BAND 2 - AGENCY,Aston Ward (Bradgate Unit),HCL NURSING,HNSI0000776,3975.20
Department of Health,Leicestershire Partnership NHS Trust,13/09/21,NURSE - BAND 5 - AGENCY,Aston Ward (Bradgate Unit),HCL NURSING,HNSI0000776,449.54
Department of Health,Leicestershire Partnership NHS Trust,13/09/21,NURSE - BAND 2 - AGENCY,Beaumont Ward - Bradgate Unit,HCL NURSING,HNSI0000776,4627.17
Department of Health,Leicestershire Partnership NHS Trust,13/09/21,NURSE - BAND 5 - AGENCY,Beaumont Ward - Bradgate Unit,HCL NURSING,HNSI0000776,6927.31
Department of Health,Leicestershire Partnership NHS Trust,13/09/21,NURSE - BAND 2 - AGENCY,Belvoir Psychiatric Intensive Care Unit,HCL NURSING,HNSI0000776,6692.66
Department of Health,Leicestershire Partnership NHS Trust,13/09/21,NURSE - BAND 5 - AGENCY,Belvoir Psychiatric Intensive Care Unit,HCL NURSING,HNSI0000776,1784.13
Department of Health,Leicestershire Partnership NHS Trust,13/09/21,NURSE - BAND 2 - AGENCY,Cedar (Willows),HCL NURSING,HNSI0000776,174.73
Department of Health,Leicestershire Partnership NHS Trust,13/09/21,Nurse - Band 6 -Agency,City West CMHT MHSOP,HCL NURSING,HNSI0000776,2691.70
Department of Health,Leicestershire Partnership NHS Trust,13/09/21,NURSE - BAND 2 - AGENCY,Coleman Ward,HCL NURSING,HNSI0000776,16529.69
Department of Health,Leicestershire Partnership NHS Trust,13/09/21,NURSE - BAND 5 - AGENCY,Coleman Ward,HCL NURSING,HNSI0000776,4854.53
Department of Health,Leicestershire Partnership NHS Trust,13/09/21,NURSE - BAND 2 - AGENCY,Griffin Ward (HPC),HCL NURSING,HNSI0000776,1584.90
Department of Health,Leicestershire Partnership NHS Trust,13/09/21,NURSE - BAND 5 - AGENCY,Griffin Ward (HPC),HCL NURSING,HNSI0000776,1392.56
Department of Health,Leicestershire Partnership NHS Trust,13/09/21,NURSE - BAND 2 - AGENCY,Gwendolen Ward,HCL NURSING,HNSI0000776,4006.42
Department of Health,Leicestershire Partnership NHS Trust,13/09/21,NURSE - BAND 2 - AGENCY,Heather Ward,HCL NURSING,HNSI0000776,3077.91
Department of Health,Leicestershire Partnership NHS Trust,13/09/21,NURSE - BAND 5 - AGENCY,Heather Ward,HCL NURSING,HNSI0000776,514.85
Department of Health,Leicestershire Partnership NHS Trust,13/09/21,NURSE - BAND 2 - AGENCY,Kirby Ward,HCL NURSING,HNSI0000776,1121.69
Department of Health,Leicestershire Partnership NHS Trust,13/09/21,Nurse - Band 6 -Agency,Liaison & Diversion - Criminal Justice,HCL NURSING,HNSI0000776,1522.92
Department of Health,Leicestershire Partnership NHS Trust,13/09/21,NURSE - BAND 2 - AGENCY,Mill Lodge,HCL NURSING,HNSI0000776,1705.66
Department of Health,Leicestershire Partnership NHS Trust,13/09/21,NURSE - BAND 5 - AGENCY,Mill Lodge,HCL NURSING,HNSI0000776,2432.10
Department of Health,Leicestershire Partnership NHS Trust,13/09/21,NURSE - BAND 2 - AGENCY,Phoenix Ward (HPC),HCL NURSING,HNSI0000776,355.90
Department of Health,Leicestershire Partnership NHS Trust,13/09/21,NURSE - BAND 5 - AGENCY,Place Of Safety Assessment Unit,HCL NURSING,HNSI0000776,776.99
Department of Health,Leicestershire Partnership NHS Trust,13/09/21,NURSE - BAND 2 - AGENCY,Thornton Ward - Bradgate Unit,HCL NURSING,HNSI0000776,2737.38
Department of Health,Leicestershire Partnership NHS Trust,13/09/21,NURSE - BAND 2 - AGENCY,Watermead Ward (Bradgate Unit),HCL NURSING,HNSI0000776,2273.14
Department of Health,Leicestershire Partnership NHS Trust,13/09/21,NURSE - BAND 5 - AGENCY,Watermead Ward (Bradgate Unit),HCL NURSING,HNSI0000776,329.84
Department of Health,Leicestershire Partnership NHS Trust,13/09/21,NURSE - BAND 2 - AGENCY,Welford Ward,HCL NURSING,HNSI0000776,174.70
Department of Health,Leicestershire Partnership NHS Trust,13/09/21,NURSE - BAND 5 - AGENCY,Welford Ward,HCL NURSING,HNSI0000776,312.74
Department of Health,Leicestershire Partnership NHS Trust,13/09/21,Mobile Telephone Rental / Calls,Specific Unit Budget Reserves,VODAFONE CORPORATE LTD,000098806580,137702.06
Department of Health,Leicestershire Partnership NHS Trust,14/09/21,Crs_NHS_LT1y -Resus Inventory Supplied.,Balance Sheet Collection,SUPPLY CHAIN CO LTD,1122106629,28909.19
Department of Health,Leicestershire Partnership NHS Trust,15/09/21,Landline Telephone Rental / Calls,"Beaumont Leys Health Centre (P94, LPT)",VIRGIN MEDIA BUSINESS,853083001/004/0921,369.40
Department of Health,Leicestershire Partnership NHS Trust,15/09/21,Landline Telephone Rental / Calls,"Bennion Centre (including Forest Grange Day Unit) (P8, LPT)",VIRGIN MEDIA BUSINESS,853083001/004/0921,7.74
Department of Health,Leicestershire Partnership NHS Trust,15/09/21,Landline Telephone Rental / Calls,"Bradgate Unit (including Glenvale day Unit) (P7, LPT)",VIRGIN MEDIA BUSINESS,853083001/004/0921,8534.08
Department of Health,Leicestershire Partnership NHS Trust,15/09/21,Landline Telephone Rental / Calls,Braunstone Health and Social Care Centre (Part) (PROPCO),VIRGIN MEDIA BUSINESS,853083001/004/0921,1084.92
Department of Health,Leicestershire Partnership NHS Trust,15/09/21,Landline Telephone Rental / Calls,Bridge Park Plaza - First Floor (LPT),VIRGIN MEDIA BUSINESS,853083001/004/0921,4308.84
Department of Health,Leicestershire Partnership NHS Trust,15/09/21,Landline Telephone Rental / Calls,"Coalville Community Hospital (P138, LPT)",VIRGIN MEDIA BUSINESS,853083001/004/0921,1560.71
Department of Health,Leicestershire Partnership NHS Trust,15/09/21,Landline Telephone Rental / Calls,"Coalville Health Centre (P121, LPT)",VIRGIN MEDIA BUSINESS,853083001/004/0921,159.43
Department of Health,Leicestershire Partnership NHS Trust,15/09/21,Landline Telephone Rental / Calls,County Hall,VIRGIN MEDIA BUSINESS,853083001/004/0921,7500.43
Department of Health,Leicestershire Partnership NHS Trust,15/09/21,Landline Telephone Rental / Calls,Estates & Facilities Central,VIRGIN MEDIA BUSINESS,853083001/004/0921,5.04
Department of Health,Leicestershire Partnership NHS Trust,15/09/21,Landline Telephone Rental / Calls,"Evington Centre (P6, LPT)",VIRGIN MEDIA BUSINESS,853083001/004/0921,1716.37
Department of Health,Leicestershire Partnership NHS Trust,15/09/21,Landline Telephone Rental / Calls,HIS,VIRGIN MEDIA BUSINESS,853083001/004/0921,3074.95
Department of Health,Leicestershire Partnership NHS Trust,15/09/21,Landline Telephone Rental / Calls,"Hawthorne Centre - Coalville (P14, LPT)",VIRGIN MEDIA BUSINESS,853083001/004/0921,497.69
Department of Health,Leicestershire Partnership NHS Trust,15/09/21,Landline Telephone Rental / Calls,"Hinckley and Bosworth Community Hospital (Sunnyside) (P133, LPT)",VIRGIN MEDIA BUSINESS,853083001/004/0921,1064.48
Department of Health,Leicestershire Partnership NHS Trust,15/09/21,Landline Telephone Rental / Calls,Hood Park Leisure Centre Clinic,VIRGIN MEDIA BUSINESS,853083001/004/0921,23.46
Department of Health,Leicestershire Partnership NHS Trust,15/09/21,Landline Telephone Rental / Calls,"Hynca Lodge (P33, LPT)",VIRGIN MEDIA BUSINESS,853083001/004/0921,366.77
Department of Health,Leicestershire Partnership NHS Trust,15/09/21,Landline Telephone Rental / Calls,"Legion House, Ashby",VIRGIN MEDIA BUSINESS,853083001/004/0921,48.16
Department of Health,Leicestershire Partnership NHS Trust,15/09/21,Landline Telephone Rental / Calls,"Loughborough Hospital (P136, LPT)",VIRGIN MEDIA BUSINESS,853083001/004/0921,4641.78
Department of Health,Leicestershire Partnership NHS Trust,15/09/21,Landline Telephone Rental / Calls,Mawson House (LPT),VIRGIN MEDIA BUSINESS,853083001/004/0921,497.89
Department of Health,Leicestershire Partnership NHS Trust,15/09/21,Landline Telephone Rental / Calls,Merlyn Vaz Centre (CHP),VIRGIN MEDIA BUSINESS,853083001/004/0921,1480.64
Department of Health,Leicestershire Partnership NHS Trust,15/09/21,Landline Telephone Rental / Calls,"Mett Centre (P49, LPT)",VIRGIN MEDIA BUSINESS,853083001/004/0921,78.28
Department of Health,Leicestershire Partnership NHS Trust,15/09/21,Landline Telephone Rental / Calls,NSPCC Training Cente,VIRGIN MEDIA BUSINESS,853083001/004/0921,159.96
Department of Health,Leicestershire Partnership NHS Trust,15/09/21,Landline Telephone Rental / Calls,New Parks Health Centre (PROPCO),VIRGIN MEDIA BUSINESS,853083001/004/0921,1730.13
Department of Health,Leicestershire Partnership NHS Trust,15/09/21,Landline Telephone Rental / Calls,"OSL House (P54, LPT)",VIRGIN MEDIA BUSINESS,853083001/004/0921,993.66
Department of Health,Leicestershire Partnership NHS Trust,15/09/21,Landline Telephone Rental / Calls,"Orchard Resource Centre (P15, LPT)",VIRGIN MEDIA BUSINESS,853083001/004/0921,651.34
Department of Health,Leicestershire Partnership NHS Trust,15/09/21,Landline Telephone Rental / Calls,Pasley Road Health Centre (PROPCO),VIRGIN MEDIA BUSINESS,853083001/004/0921,121.96
Department of Health,Leicestershire Partnership NHS Trust,15/09/21,Landline Telephone Rental / Calls,"Prince Philip House (P96, LPT)",VIRGIN MEDIA BUSINESS,853083001/004/0921,1785.73
Department of Health,Leicestershire Partnership NHS Trust,15/09/21,Landline Telephone Rental / Calls,Rushey Mead Health Centre (PROPCO),VIRGIN MEDIA BUSINESS,853083001/004/0921,84.52
Department of Health,Leicestershire Partnership NHS Trust,15/09/21,Landline Telephone Rental / Calls,"Shepshed Health Centre (P123, LPT)",VIRGIN MEDIA BUSINESS,853083001/004/0921,15.41
Department of Health,Leicestershire Partnership NHS Trust,15/09/21,Landline Telephone Rental / Calls,"Springfield Road Health Centre (P92, LPT)",VIRGIN MEDIA BUSINESS,853083001/004/0921,372.70
Department of Health,Leicestershire Partnership NHS Trust,15/09/21,Landline Telephone Rental / Calls,"St Peters Health Center (Part 1st and 2nd floors) (P66, LPT)",VIRGIN MEDIA BUSINESS,853083001/004/0921,2083.70
Department of Health,Leicestershire Partnership NHS Trust,15/09/21,Landline Telephone Rental / Calls,"Stewart House (P61, LPT)",VIRGIN MEDIA BUSINESS,853083001/004/0921,7.74
Department of Health,Leicestershire Partnership NHS Trust,15/09/21,Landline Telephone Rental / Calls,"Swithland House - London Road 352 (P44, LPT)",VIRGIN MEDIA BUSINESS,853083001/004/0921,391.13
Department of Health,Leicestershire Partnership NHS Trust,15/09/21,Landline Telephone Rental / Calls,"The Cedars (P19, LPT)",VIRGIN MEDIA BUSINESS,853083001/004/0921,702.77
Department of Health,Leicestershire Partnership NHS Trust,15/09/21,Landline Telephone Rental / Calls,"The Willows - Cordelia Close (P22, LPT)",VIRGIN MEDIA BUSINESS,853083001/004/0921,449.09
Department of Health,Leicestershire Partnership NHS Trust,15/09/21,Landline Telephone Rental / Calls,"Valentine Centre (P3, LPT)",VIRGIN MEDIA BUSINESS,853083001/004/0921,1857.13
Department of Health,Leicestershire Partnership NHS Trust,15/09/21,Landline Telephone Rental / Calls,Warren Park Way 25 (PROPCO),VIRGIN MEDIA BUSINESS,853083001/004/0921,729.60
Department of Health,Leicestershire Partnership NHS Trust,15/09/21,Landline Telephone Rental / Calls,"Westcotes Group -Westcotes House (P78, LPT)",VIRGIN MEDIA BUSINESS,853083001/004/0921,1596.26
Department of Health,Leicestershire Partnership NHS Trust,15/09/21,Landline Telephone Rental / Calls,"Winstanley Drive Health Centre (P8, LPT)",VIRGIN MEDIA BUSINESS,853083001/004/0921,408.34
Department of Health,Leicestershire Partnership NHS Trust,16/09/21,Occupational Health,HR Operations,UHL NHS TRUST (RWE),L0253412,35290.00
Department of Health,Leicestershire Partnership NHS Trust,16/09/21,Services / Recharges from NHS Trusts,Inter Unit I & E Distribution,UHL NHS TRUST (RWE),L0253413,144923.71
Department of Health,Leicestershire Partnership NHS Trust,16/09/21,Gas,"Beaumont Leys Health Centre (P94, LPT)",TOTAL GAS & POWER LTD,247079123/21,364.30
Department of Health,Leicestershire Partnership NHS Trust,16/09/21,Gas,"Bennion Centre (including Forest Grange Day Unit) (P8, LPT)",TOTAL GAS & POWER LTD,247079123/21,8558.47
Department of Health,Leicestershire Partnership NHS Trust,16/09/21,Gas,"Bradgate Unit (including Glenvale day Unit) (P7, LPT)",TOTAL GAS & POWER LTD,247079123/21,2012.38
Department of Health,Leicestershire Partnership NHS Trust,16/09/21,Gas,Bridge Park Plaza - First Floor (LPT),TOTAL GAS & POWER LTD,247079123/21,525.90
Department of Health,Leicestershire Partnership NHS Trust,16/09/21,Gas,"Bridge Park Road - Units 2 and 3 (P148, LPT)",TOTAL GAS & POWER LTD,247079123/21,139.78
Department of Health,Leicestershire Partnership NHS Trust,16/09/21,Gas,"Coalville Community Hospital (P138, LPT)",TOTAL GAS & POWER LTD,247079123/21,3239.70
Department of Health,Leicestershire Partnership NHS Trust,16/09/21,Gas,"Coalville Health Centre (P121, LPT)",TOTAL GAS & POWER LTD,247079123/21,162.66
Department of Health,Leicestershire Partnership NHS Trust,16/09/21,Gas,"Evington Centre (P6, LPT)",TOTAL GAS & POWER LTD,247079123/21,551.05
Department of Health,Leicestershire Partnership NHS Trust,16/09/21,Gas,"Farm Lodge (P34, LPT)",TOTAL GAS & POWER LTD,247079123/21,82.22
Department of Health,Leicestershire Partnership NHS Trust,16/09/21,Gas,"Feilding Palmer Hospital (Lutterworth) (P131, LPT)",TOTAL GAS & POWER LTD,247079123/21,756.38
Department of Health,Leicestershire Partnership NHS Trust,16/09/21,Gas,"Frith Cottages 3 & 4 (P36, LPT)",TOTAL GAS & POWER LTD,247079123/21,59.78
Department of Health,Leicestershire Partnership NHS Trust,16/09/21,Gas,HIS,TOTAL GAS & POWER LTD,247079123/21,30.92
Department of Health,Leicestershire Partnership NHS Trust,16/09/21,Gas,"Hawthorne Centre - Coalville (P14, LPT)",TOTAL GAS & POWER LTD,247079123/21,121.78
Department of Health,Leicestershire Partnership NHS Trust,16/09/21,Gas,"Hinckley and Bosworth Community Hospital (Sunnyside) (P133, LPT)",TOTAL GAS & POWER LTD,247079123/21,2745.38
Department of Health,Leicestershire Partnership NHS Trust,16/09/21,Gas,"Hynca Lodge (P33, LPT)",TOTAL GAS & POWER LTD,247079123/21,154.97
Department of Health,Leicestershire Partnership NHS Trust,16/09/21,Gas,"LGH - Gwendolen House (P4, LPT)",TOTAL GAS & POWER LTD,247079123/21,289.37
Department of Health,Leicestershire Partnership NHS Trust,16/09/21,Gas,"Loughborough Hospital (P136, LPT)",TOTAL GAS & POWER LTD,247079123/21,4757.98
Department of Health,Leicestershire Partnership NHS Trust,16/09/21,Gas,Mawson House (LPT),TOTAL GAS & POWER LTD,247079123/21,52.40
Department of Health,Leicestershire Partnership NHS Trust,16/09/21,Gas,"Mett Centre (P49, LPT)",TOTAL GAS & POWER LTD,247079123/21,124.29
Department of Health,Leicestershire Partnership NHS Trust,16/09/21,Gas,"Narborough Health Centre (P117, LPT)",TOTAL GAS & POWER LTD,247079123/21,134.59
Department of Health,Leicestershire Partnership NHS Trust,16/09/21,Gas,"Neville Centre - LGH (was DSC) (P147, LPT)",TOTAL GAS & POWER LTD,247079123/21,354.50
Department of Health,Leicestershire Partnership NHS Trust,16/09/21,Gas,"OSL House (P54, LPT)",TOTAL GAS & POWER LTD,247079123/21,192.93
Department of Health,Leicestershire Partnership NHS Trust,16/09/21,Gas,"Orchard Resource Centre (P15, LPT)",TOTAL GAS & POWER LTD,247079123/21,143.42
Department of Health,Leicestershire Partnership NHS Trust,16/09/21,Gas,"Rubicon Close 3 (P56, LPT)",TOTAL GAS & POWER LTD,247079123/21,-69.62
Department of Health,Leicestershire Partnership NHS Trust,16/09/21,Gas,"Rutland Memorial Hospital (P134, LPT)",TOTAL GAS & POWER LTD,247079123/21,436.75
Department of Health,Leicestershire Partnership NHS Trust,16/09/21,Gas,"Shepshed Health Centre (P123, LPT)",TOTAL GAS & POWER LTD,247079123/21,156.48
Department of Health,Leicestershire Partnership NHS Trust,16/09/21,Gas,"Springfield Road Health Centre (P92, LPT)",TOTAL GAS & POWER LTD,247079123/21,130.11
Department of Health,Leicestershire Partnership NHS Trust,16/09/21,Gas,"Stewart House (P61, LPT)",TOTAL GAS & POWER LTD,247079123/21,1202.34
Department of Health,Leicestershire Partnership NHS Trust,16/09/21,Gas,"Swithland House - London Road 352 (P44, LPT)",TOTAL GAS & POWER LTD,247079123/21,296.41
Department of Health,Leicestershire Partnership NHS Trust,16/09/21,Gas,"The Agnes Unit (AKA Assessment and Treatment Centre) (P85, LPT)",TOTAL GAS & POWER LTD,247079123/21,1062.21
Department of Health,Leicestershire Partnership NHS Trust,16/09/21,Gas,The Beacon,TOTAL GAS & POWER LTD,247079123/21,354.72
Department of Health,Leicestershire Partnership NHS Trust,16/09/21,Gas,"The Cedars (P19, LPT)",TOTAL GAS & POWER LTD,247079123/21,83.99
Department of Health,Leicestershire Partnership NHS Trust,16/09/21,Gas,"The Grange 1 (P4, LPT)",TOTAL GAS & POWER LTD,247079123/21,95.73
Department of Health,Leicestershire Partnership NHS Trust,16/09/21,Gas,"The Grange 2 (P41, LPT)",TOTAL GAS & POWER LTD,247079123/21,71.34
Department of Health,Leicestershire Partnership NHS Trust,16/09/21,Gas,"The Willows - Cordelia Close (P22, LPT)",TOTAL GAS & POWER LTD,247079123/21,1018.68
Department of Health,Leicestershire Partnership NHS Trust,16/09/21,Gas,"Valentine Centre (P3, LPT)",TOTAL GAS & POWER LTD,247079123/21,918.86
Department of Health,Leicestershire Partnership NHS Trust,16/09/21,Gas,"Westcotes Group -Westcotes House (P78, LPT)",TOTAL GAS & POWER LTD,247079123/21,429.55
Department of Health,Leicestershire Partnership NHS Trust,16/09/21,Gas,"Winstanley Drive Health Centre (P8, LPT)",TOTAL GAS & POWER LTD,247079123/21,152.76
Department of Health,Leicestershire Partnership NHS Trust,17/09/21,Photocopying,Estates & Facilities Central,LEXMARK INTERNATIONAL LTD,900650301659,34545.07
Department of Health,Leicestershire Partnership NHS Trust,20/09/21,Services / Recharges from NHS Trusts,Inter Unit I & E Distribution,UHL NHS TRUST (RWE),L0253452,60000.04
Department of Health,Leicestershire Partnership NHS Trust,20/09/21,Crs_Trade_LT1y -Purchasing Card monthly control,Balance Sheet Collection,CHAPS,NATWESTCARD,130000.00
Department of Health,Leicestershire Partnership NHS Trust,20/09/21,Crs_NHS_LT1y -Resus Inventory Supplied.,Balance Sheet Collection,SUPPLY CHAIN CO LTD,1122109554,49510.64
Department of Health,Leicestershire Partnership NHS Trust,20/09/21,WIP Project Not in BS - Information Technology,Work in Progress,DELL COMPUTERS,7402742579,36696.00
Department of Health,Leicestershire Partnership NHS Trust,20/09/21,WIP Project Not in BS - Information Technology,Work in Progress,DELL COMPUTERS,7402742948,83400.00
Department of Health,Leicestershire Partnership NHS Trust,20/09/21,Nurse - Band 6 -Agency,AMH - Central Access Point,HCL NURSING,HNSI0000794,4765.92
Department of Health,Leicestershire Partnership NHS Trust,20/09/21,Nurse - Band 6 -Agency,Adult City East CMHT - Merlyn Vaz,HCL NURSING,HNSI0000794,2178.99
Department of Health,Leicestershire Partnership NHS Trust,20/09/21,Nurse - Band 6 -Agency,Adult County Charnwood CMHT - Loughborough Base,HCL NURSING,HNSI0000794,855.97
Department of Health,Leicestershire Partnership NHS Trust,20/09/21,Nurse - Band 6 -Agency,Adult County West Leicestershire CMHT,HCL NURSING,HNSI0000794,1069.97
Department of Health,Leicestershire Partnership NHS Trust,20/09/21,NURSE - BAND 2 - AGENCY,Agnes Unit Management,HCL NURSING,HNSI0000794,23294.57
Department of Health,Leicestershire Partnership NHS Trust,20/09/21,NURSE - BAND 5 - AGENCY,Agnes Unit Management,HCL NURSING,HNSI0000794,17514.71
Department of Health,Leicestershire Partnership NHS Trust,20/09/21,NURSE - BAND 5 - AGENCY,Ashby Ward (Bradgate Unit),HCL NURSING,HNSI0000794,2562.45
Department of Health,Leicestershire Partnership NHS Trust,20/09/21,NURSE - BAND 2 - AGENCY,Aston Ward (Bradgate Unit),HCL NURSING,HNSI0000794,1027.80
Department of Health,Leicestershire Partnership NHS Trust,20/09/21,NURSE - BAND 5 - AGENCY,Aston Ward (Bradgate Unit),HCL NURSING,HNSI0000794,1086.70
Department of Health,Leicestershire Partnership NHS Trust,20/09/21,NURSE - BAND 2 - AGENCY,Beaumont Ward - Bradgate Unit,HCL NURSING,HNSI0000794,1712.05
Department of Health,Leicestershire Partnership NHS Trust,20/09/21,NURSE - BAND 5 - AGENCY,Beaumont Ward - Bradgate Unit,HCL NURSING,HNSI0000794,392.91
Department of Health,Leicestershire Partnership NHS Trust,20/09/21,NURSE - BAND 2 - AGENCY,Belvoir Psychiatric Intensive Care Unit,HCL NURSING,HNSI0000794,2273.84
Department of Health,Leicestershire Partnership NHS Trust,20/09/21,NURSE - BAND 5 - AGENCY,Belvoir Psychiatric Intensive Care Unit,HCL NURSING,HNSI0000794,4383.30
Department of Health,Leicestershire Partnership NHS Trust,20/09/21,NURSE - BAND 2 - AGENCY,Cedar (Willows),HCL NURSING,HNSI0000794,1157.53
Department of Health,Leicestershire Partnership NHS Trust,20/09/21,Nurse - Band 6 -Agency,City West CMHT MHSOP,HCL NURSING,HNSI0000794,855.97
Department of Health,Leicestershire Partnership NHS Trust,20/09/21,NURSE - BAND 2 - AGENCY,Coleman Ward,HCL NURSING,HNSI0000794,5534.90
Department of Health,Leicestershire Partnership NHS Trust,20/09/21,NURSE - BAND 5 - AGENCY,Coleman Ward,HCL NURSING,HNSI0000794,9692.10
Department of Health,Leicestershire Partnership NHS Trust,20/09/21,Nurse - Band 6 -Agency,Crisis Resolution,HCL NURSING,HNSI0000794,427.99
Department of Health,Leicestershire Partnership NHS Trust,20/09/21,NURSE - BAND 2 - AGENCY,Griffin Ward (HPC),HCL NURSING,HNSI0000794,3484.73
Department of Health,Leicestershire Partnership NHS Trust,20/09/21,NURSE - BAND 5 - AGENCY,Griffin Ward (HPC),HCL NURSING,HNSI0000794,855.19
Department of Health,Leicestershire Partnership NHS Trust,20/09/21,NURSE - BAND 2 - AGENCY,Gwendolen Ward,HCL NURSING,HNSI0000794,316.33
Department of Health,Leicestershire Partnership NHS Trust,20/09/21,NURSE - BAND 2 - AGENCY,Heather Ward,HCL NURSING,HNSI0000794,1814.79
Department of Health,Leicestershire Partnership NHS Trust,20/09/21,NURSE - BAND 5 - AGENCY,Heather Ward,HCL NURSING,HNSI0000794,964.39
Department of Health,Leicestershire Partnership NHS Trust,20/09/21,NURSE - BAND 2 - AGENCY,Kirby Ward,HCL NURSING,HNSI0000794,1152.26
Department of Health,Leicestershire Partnership NHS Trust,20/09/21,NURSE - BAND 5 - AGENCY,Kirby Ward,HCL NURSING,HNSI0000794,605.20
Department of Health,Leicestershire Partnership NHS Trust,20/09/21,Nurse - Band 6 -Agency,Liaison & Diversion - Criminal Justice,HCL NURSING,HNSI0000794,1154.06
Department of Health,Leicestershire Partnership NHS Trust,20/09/21,NURSE - BAND 5 - AGENCY,Mental Health Liaison Team,HCL NURSING,HNSI0000794,641.85
Department of Health,Leicestershire Partnership NHS Trust,20/09/21,NURSE - BAND 2 - AGENCY,Mill Lodge,HCL NURSING,HNSI0000794,4308.69
Department of Health,Leicestershire Partnership NHS Trust,20/09/21,NURSE - BAND 5 - AGENCY,Mill Lodge,HCL NURSING,HNSI0000794,2290.95
Department of Health,Leicestershire Partnership NHS Trust,20/09/21,NURSE - BAND 2 - AGENCY,Phoenix Ward (HPC),HCL NURSING,HNSI0000794,2702.95
Department of Health,Leicestershire Partnership NHS Trust,20/09/21,NURSE - BAND 5 - AGENCY,Phoenix Ward (HPC),HCL NURSING,HNSI0000794,739.65
Department of Health,Leicestershire Partnership NHS Trust,20/09/21,NURSE - BAND 2 - AGENCY,Place Of Safety Assessment Unit,HCL NURSING,HNSI0000794,1577.32
Department of Health,Leicestershire Partnership NHS Trust,20/09/21,NURSE - BAND 5 - AGENCY,Place Of Safety Assessment Unit,HCL NURSING,HNSI0000794,1868.60
Department of Health,Leicestershire Partnership NHS Trust,20/09/21,NURSE - BAND 2 - AGENCY,Stewart House,HCL NURSING,HNSI0000794,988.59
Department of Health,Leicestershire Partnership NHS Trust,20/09/21,NURSE - BAND 5 - AGENCY,Stewart House,HCL NURSING,HNSI0000794,976.50
Department of Health,Leicestershire Partnership NHS Trust,20/09/21,NURSE - BAND 2 - AGENCY,Thornton Ward - Bradgate Unit,HCL NURSING,HNSI0000794,269.49
Department of Health,Leicestershire Partnership NHS Trust,20/09/21,NURSE - BAND 5 - AGENCY,Thornton Ward - Bradgate Unit,HCL NURSING,HNSI0000794,571.85
Department of Health,Leicestershire Partnership NHS Trust,20/09/21,NURSE - BAND 2 - AGENCY,Watermead Ward (Bradgate Unit),HCL NURSING,HNSI0000794,3537.05
Department of Health,Leicestershire Partnership NHS Trust,20/09/21,NURSE - BAND 5 - AGENCY,Watermead Ward (Bradgate Unit),HCL NURSING,HNSI0000794,1289.89
Department of Health,Leicestershire Partnership NHS Trust,20/09/21,NURSE - BAND 2 - AGENCY,Welford Ward,HCL NURSING,HNSI0000794,1164.59
Department of Health,Leicestershire Partnership NHS Trust,20/09/21,Nurse - Band 6 -Agency,CAMHS HUB / CAP,HCL SOCIAL CARE,HWSI0000812,12265.57
Department of Health,Leicestershire Partnership NHS Trust,20/09/21,Nurse - Band 6 -Agency,CAMHS Waiting List Monies,HCL SOCIAL CARE,HWSI0000812,16097.25
Department of Health,Leicestershire Partnership NHS Trust,20/09/21,Nurse - Band 6 -Agency,Crisis Response and Home Treatment,HCL SOCIAL CARE,HWSI0000812,1965.85
Department of Health,Leicestershire Partnership NHS Trust,20/09/21,NURSE - BAND 2 - AGENCY,CAMHS Inpatient Service,HCL NURSING,HNSI0000796,15391.61
Department of Health,Leicestershire Partnership NHS Trust,20/09/21,Nurse - Band 6 -Agency,CAMHS Waiting List Monies,HCL NURSING,HNSI0000796,4016.57
Department of Health,Leicestershire Partnership NHS Trust,20/09/21,Nurse - Band 6 -Agency,CAMHS Young Peoples Team,HCL NURSING,HNSI0000796,1032.76
Department of Health,Leicestershire Partnership NHS Trust,20/09/21,NURSE - BAND 2 - AGENCY,Langley Ward ED Inpatient Service,HCL NURSING,HNSI0000796,377.20
Department of Health,Leicestershire Partnership NHS Trust,20/09/21,NURSE - BAND 5 - AGENCY,Langley Ward ED Inpatient Service,HCL NURSING,HNSI0000796,2528.75
Department of Health,Leicestershire Partnership NHS Trust,21/09/21,Med GP Trainees,Medical Trainees,ST.HELENS & KNOWSLEY NHS TRUST,16808204,75000.00
Department of Health,Leicestershire Partnership NHS Trust,21/09/21,UHL Facilities Management SLA,Estates Central Invoices To Recharge,UHL NHS TRUST (RWE),L0253552,940375.84
Department of Health,Leicestershire Partnership NHS Trust,21/09/21,Contract : Premises Security,Feilding Palmer - Staff Vaccination Hub,UHL NHS TRUST (RWE),L0253555,47935.80
Department of Health,Leicestershire Partnership NHS Trust,22/09/21,NURSE - BAND 2 - AGENCY,Beechwood Ward,HCL NURSING,HNSI0000795,4029.72
Department of Health,Leicestershire Partnership NHS Trust,22/09/21,NURSE - BAND 5 - AGENCY,Beechwood Ward,HCL NURSING,HNSI0000795,3281.76
Department of Health,Leicestershire Partnership NHS Trust,22/09/21,NURSE - BAND 5 - AGENCY,City & County Continence Service,HCL NURSING,HNSI0000795,368.47
Department of Health,Leicestershire Partnership NHS Trust,22/09/21,NURSE - BAND 5 - AGENCY,City Planned Care - East,HCL NURSING,HNSI0000795,9869.70
Department of Health,Leicestershire Partnership NHS Trust,22/09/21,NURSE - BAND 5 - AGENCY,City Planned Care - West,HCL NURSING,HNSI0000795,12359.21
Department of Health,Leicestershire Partnership NHS Trust,22/09/21,NURSE - BAND 2 - AGENCY,Clarendon Ward,HCL NURSING,HNSI0000795,4369.01
Department of Health,Leicestershire Partnership NHS Trust,22/09/21,NURSE - BAND 5 - AGENCY,Clarendon Ward,HCL NURSING,HNSI0000795,2994.76
Department of Health,Leicestershire Partnership NHS Trust,22/09/21,NURSE - BAND 2 - AGENCY,Coalville Snibston Ward,HCL NURSING,HNSI0000795,2772.82
Department of Health,Leicestershire Partnership NHS Trust,22/09/21,NURSE - BAND 5 - AGENCY,Coalville Snibston Ward,HCL NURSING,HNSI0000795,1241.24
Department of Health,Leicestershire Partnership NHS Trust,22/09/21,NURSE - BAND 2 - AGENCY,Coalville Ward 2,HCL NURSING,HNSI0000795,1199.29
Department of Health,Leicestershire Partnership NHS Trust,22/09/21,NURSE - BAND 5 - AGENCY,Coalville Ward 2,HCL NURSING,HNSI0000795,1198.48
Department of Health,Leicestershire Partnership NHS Trust,22/09/21,NURSE - BAND 2 - AGENCY,Dalgliesh Ward,HCL NURSING,HNSI0000795,1010.90
Department of Health,Leicestershire Partnership NHS Trust,22/09/21,NURSE - BAND 5 - AGENCY,Dalgliesh Ward,HCL NURSING,HNSI0000795,2198.05
Department of Health,Leicestershire Partnership NHS Trust,22/09/21,NURSE - BAND 2 - AGENCY,H&B Comm Hosp East Ward,HCL NURSING,HNSI0000795,5918.71
Department of Health,Leicestershire Partnership NHS Trust,22/09/21,NURSE - BAND 5 - AGENCY,H&B Comm Hosp East Ward,HCL NURSING,HNSI0000795,7390.58
Department of Health,Leicestershire Partnership NHS Trust,22/09/21,NURSE - BAND 2 - AGENCY,H&B Comm Hosp North Ward,HCL NURSING,HNSI0000795,4580.42
Department of Health,Leicestershire Partnership NHS Trust,22/09/21,NURSE - BAND 5 - AGENCY,H&B Comm Hosp North Ward,HCL NURSING,HNSI0000795,2971.61
Department of Health,Leicestershire Partnership NHS Trust,22/09/21,NURSE - BAND 2 - AGENCY,Lough Swithland Ward,HCL NURSING,HNSI0000795,1588.99
Department of Health,Leicestershire Partnership NHS Trust,22/09/21,NURSE - BAND 5 - AGENCY,Lough Swithland Ward,HCL NURSING,HNSI0000795,1630.35
Department of Health,Leicestershire Partnership NHS Trust,22/09/21,NURSE - BAND 2 - AGENCY,Rutland Ward Nursing,HCL NURSING,HNSI0000795,900.92
Department of Health,Leicestershire Partnership NHS Trust,22/09/21,NURSE - BAND 5 - AGENCY,Rutland Ward Nursing,HCL NURSING,HNSI0000795,2076.90
Department of Health,Leicestershire Partnership NHS Trust,22/09/21,NURSE - BAND 2 - AGENCY,St Lukes Stroke Ward,HCL NURSING,HNSI0000795,1312.85
Department of Health,Leicestershire Partnership NHS Trust,22/09/21,NURSE - BAND 5 - AGENCY,St Lukes Stroke Ward,HCL NURSING,HNSI0000795,2183.90
Department of Health,Leicestershire Partnership NHS Trust,22/09/21,NURSE - BAND 2 - AGENCY,St Lukes Ward 3,HCL NURSING,HNSI0000795,601.25
Department of Health,Leicestershire Partnership NHS Trust,22/09/21,NURSE - BAND 5 - AGENCY,St Lukes Ward 3,HCL NURSING,HNSI0000795,2529.69
Department of Health,Leicestershire Partnership NHS Trust,22/09/21,NURSE - BAND 2 - AGENCY,Wakerley Ward,HCL NURSING,HNSI0000795,7755.88
Department of Health,Leicestershire Partnership NHS Trust,22/09/21,NURSE - BAND 5 - AGENCY,Wakerley Ward,HCL NURSING,HNSI0000795,4183.62
Department of Health,Leicestershire Partnership NHS Trust,22/09/21,NURSE - BAND 2 - AGENCY,Beechwood Ward,HCL NURSING,HNSI0000791,2215.98
Department of Health,Leicestershire Partnership NHS Trust,22/09/21,NURSE - BAND 5 - AGENCY,Beechwood Ward,HCL NURSING,HNSI0000791,4006.03
Department of Health,Leicestershire Partnership NHS Trust,22/09/21,NURSE - BAND 5 - AGENCY,City & County Continence Service,HCL NURSING,HNSI0000791,691.83
Department of Health,Leicestershire Partnership NHS Trust,22/09/21,NURSE - BAND 5 - AGENCY,City Planned Care - East,HCL NURSING,HNSI0000791,11937.51
Department of Health,Leicestershire Partnership NHS Trust,22/09/21,NURSE - BAND 5 - AGENCY,City Planned Care - West,HCL NURSING,HNSI0000791,13395.56
Department of Health,Leicestershire Partnership NHS Trust,22/09/21,NURSE - BAND 2 - AGENCY,Clarendon Ward,HCL NURSING,HNSI0000791,6656.03
Department of Health,Leicestershire Partnership NHS Trust,22/09/21,NURSE - BAND 5 - AGENCY,Clarendon Ward,HCL NURSING,HNSI0000791,2894.01
Department of Health,Leicestershire Partnership NHS Trust,22/09/21,NURSE - BAND 2 - AGENCY,Coalville Snibston Ward,HCL NURSING,HNSI0000791,2745.56
Department of Health,Leicestershire Partnership NHS Trust,22/09/21,NURSE - BAND 5 - AGENCY,Coalville Snibston Ward,HCL NURSING,HNSI0000791,1905.58
Department of Health,Leicestershire Partnership NHS Trust,22/09/21,NURSE - BAND 5 - AGENCY,Coalville Ward 2,HCL NURSING,HNSI0000791,1687.35
Department of Health,Leicestershire Partnership NHS Trust,22/09/21,NURSE - BAND 2 - AGENCY,Dalgliesh Ward,HCL NURSING,HNSI0000791,682.44
Department of Health,Leicestershire Partnership NHS Trust,22/09/21,NURSE - BAND 5 - AGENCY,Dalgliesh Ward,HCL NURSING,HNSI0000791,1941.10
Department of Health,Leicestershire Partnership NHS Trust,22/09/21,NURSE - BAND 2 - AGENCY,H&B Comm Hosp East Ward,HCL NURSING,HNSI0000791,6181.45
Department of Health,Leicestershire Partnership NHS Trust,22/09/21,NURSE - BAND 5 - AGENCY,H&B Comm Hosp East Ward,HCL NURSING,HNSI0000791,6675.55
Department of Health,Leicestershire Partnership NHS Trust,22/09/21,NURSE - BAND 2 - AGENCY,H&B Comm Hosp North Ward,HCL NURSING,HNSI0000791,10649.23
Department of Health,Leicestershire Partnership NHS Trust,22/09/21,NURSE - BAND 5 - AGENCY,H&B Comm Hosp North Ward,HCL NURSING,HNSI0000791,2225.35
Department of Health,Leicestershire Partnership NHS Trust,22/09/21,NURSE - BAND 2 - AGENCY,Lough Swithland Ward,HCL NURSING,HNSI0000791,1091.64
Department of Health,Leicestershire Partnership NHS Trust,22/09/21,NURSE - BAND 5 - AGENCY,Lough Swithland Ward,HCL NURSING,HNSI0000791,3500.44
Department of Health,Leicestershire Partnership NHS Trust,22/09/21,NURSE - BAND 2 - AGENCY,Rutland Ward Nursing,HCL NURSING,HNSI0000791,1155.25
Department of Health,Leicestershire Partnership NHS Trust,22/09/21,NURSE - BAND 5 - AGENCY,Rutland Ward Nursing,HCL NURSING,HNSI0000791,772.51
Department of Health,Leicestershire Partnership NHS Trust,22/09/21,NURSE - BAND 2 - AGENCY,St Lukes Stroke Ward,HCL NURSING,HNSI0000791,1588.02
Department of Health,Leicestershire Partnership NHS Trust,22/09/21,NURSE - BAND 5 - AGENCY,St Lukes Stroke Ward,HCL NURSING,HNSI0000791,4648.49
Department of Health,Leicestershire Partnership NHS Trust,22/09/21,NURSE - BAND 2 - AGENCY,St Lukes Ward 3,HCL NURSING,HNSI0000791,1093.20
Department of Health,Leicestershire Partnership NHS Trust,22/09/21,NURSE - BAND 5 - AGENCY,St Lukes Ward 3,HCL NURSING,HNSI0000791,2636.98
Department of Health,Leicestershire Partnership NHS Trust,22/09/21,NURSE - BAND 2 - AGENCY,Wakerley Ward,HCL NURSING,HNSI0000791,5253.27
Department of Health,Leicestershire Partnership NHS Trust,22/09/21,NURSE - BAND 5 - AGENCY,Wakerley Ward,HCL NURSING,HNSI0000791,5636.69
Department of Health,Leicestershire Partnership NHS Trust,22/09/21,FP10'S,Adult City Drugs,NHS BUS SERVICES AUTHORITY,1000070552,20209.02
Department of Health,Leicestershire Partnership NHS Trust,22/09/21,FP10'S,Adult County Drugs,NHS BUS SERVICES AUTHORITY,1000070552,20622.80
Department of Health,Leicestershire Partnership NHS Trust,22/09/21,FP10'S,Adult County North West Leicestershire CMHT,NHS BUS SERVICES AUTHORITY,1000070552,189.18
Department of Health,Leicestershire Partnership NHS Trust,22/09/21,FP10'S,CAMHS Outpatients,NHS BUS SERVICES AUTHORITY,1000070552,11856.11
Department of Health,Leicestershire Partnership NHS Trust,22/09/21,FP10'S,Community Paediatrics,NHS BUS SERVICES AUTHORITY,1000070552,8369.34
Department of Health,Leicestershire Partnership NHS Trust,22/09/21,FP10'S,Dementia Related Drugs and Investigations,NHS BUS SERVICES AUTHORITY,1000070552,3855.62
Department of Health,Leicestershire Partnership NHS Trust,22/09/21,FP10'S,Eating Disorders Outpatient Service,NHS BUS SERVICES AUTHORITY,1000070552,1399.20
Department of Health,Leicestershire Partnership NHS Trust,22/09/21,FP10'S,Forensic Services - Community,NHS BUS SERVICES AUTHORITY,1000070552,129.77
Department of Health,Leicestershire Partnership NHS Trust,22/09/21,FP10'S,LOROS Pharmacy,NHS BUS SERVICES AUTHORITY,1000070552,702.94
Department of Health,Leicestershire Partnership NHS Trust,22/09/21,FP10'S,Liason Psychiatry Service,NHS BUS SERVICES AUTHORITY,1000070552,44.98
Department of Health,Leicestershire Partnership NHS Trust,22/09/21,FP10'S,Mental Health Liaison Team,NHS BUS SERVICES AUTHORITY,1000070552,1.21
Department of Health,Leicestershire Partnership NHS Trust,22/09/21,FP10'S,PIER Team - Early Intervention Services,NHS BUS SERVICES AUTHORITY,1000070552,11754.03
Department of Health,Leicestershire Partnership NHS Trust,22/09/21,FP10'S,Snr Med Staff (Inc Med Reps),NHS BUS SERVICES AUTHORITY,1000070552,6774.72
Department of Health,Leicestershire Partnership NHS Trust,23/09/21,Crs_Trade_LT1y -Purchasing Card monthly control,Balance Sheet Collection,CHAPS,PURCHASECARD2,130000.00
Department of Health,Leicestershire Partnership NHS Trust,27/09/21,Crs_NHS_LT1y -Resus Inventory Supplied.,Balance Sheet Collection,SUPPLY CHAIN CO LTD,1122116288,36227.13
Department of Health,Leicestershire Partnership NHS Trust,27/09/21,Rent,"St Peters Health Center (Part 1st and 2nd floors) (P66, LPT)",LEICESTER LIFT CO,LEP1/SI0858,27433.45
Department of Health,Leicestershire Partnership NHS Trust,28/09/21,Other Non-Medical Supplies & Services,"Inpatients, Crisis & Liasion Management",BLABY DISTRICT COUNCIL,H0009510,43122.00
Department of Health,Leicestershire Partnership NHS Trust,28/09/21,Healthcare Services / Recharges from Non-NHS Bodies,Adult Eating Disorder Collaborative,ELLERN MEDE MOORGATE,OTM0003,37200.00
Department of Health,Leicestershire Partnership NHS Trust,28/09/21,Maintenance Equipt/Materials,Estates & Facilities Central,UHL NHS TRUST (RWE),L0253721,53431.14
Department of Health,Leicestershire Partnership NHS Trust,28/09/21,Medical & Surgical Equipment,CHS Inpatient Management,PRO PADS SERVICES LLP,1978,25050.00
Department of Health,Leicestershire Partnership NHS Trust,29/09/21,CHP Estates Management,Merlyn Vaz Centre (CHP),COMM HLTH PARTNERSHIPS LTD,0060214033,27744.56
Department of Health,Leicestershire Partnership NHS Trust,29/09/21,CHP Estates Management,Merlyn Vaz Centre (CHP),COMM HLTH PARTNERSHIPS LTD,0060214030,30935.19
Department of Health,Leicestershire Partnership NHS Trust,29/09/21,Nurse - Band 6 -Agency,AMH - Central Access Point,HCL NURSING,HNSI0000803,4130.37
Department of Health,Leicestershire Partnership NHS Trust,29/09/21,Nurse - Band 6 -Agency,Adult City East CMHT - Merlyn Vaz,HCL NURSING,HNSI0000803,1997.64
Department of Health,Leicestershire Partnership NHS Trust,29/09/21,Nurse - Band 6 -Agency,Adult County Charnwood CMHT - Loughborough Base,HCL NURSING,HNSI0000803,2139.93
Department of Health,Leicestershire Partnership NHS Trust,29/09/21,Nurse - Band 6 -Agency,Adult County West Leicestershire CMHT,HCL NURSING,HNSI0000803,1069.97
Department of Health,Leicestershire Partnership NHS Trust,29/09/21,NURSE - BAND 2 - AGENCY,Agnes Unit Management,HCL NURSING,HNSI0000803,20794.77
Department of Health,Leicestershire Partnership NHS Trust,29/09/21,NURSE - BAND 5 - AGENCY,Agnes Unit Management,HCL NURSING,HNSI0000803,17082.94
Department of Health,Leicestershire Partnership NHS Trust,29/09/21,NURSE - BAND 2 - AGENCY,Ashby Ward (Bradgate Unit),HCL NURSING,HNSI0000803,1246.05
Department of Health,Leicestershire Partnership NHS Trust,29/09/21,NURSE - BAND 5 - AGENCY,Ashby Ward (Bradgate Unit),HCL NURSING,HNSI0000803,3883.68
Department of Health,Leicestershire Partnership NHS Trust,29/09/21,NURSE - BAND 2 - AGENCY,Aston Ward (Bradgate Unit),HCL NURSING,HNSI0000803,891.41
Department of Health,Leicestershire Partnership NHS Trust,29/09/21,NURSE - BAND 5 - AGENCY,Aston Ward (Bradgate Unit),HCL NURSING,HNSI0000803,2059.40
Department of Health,Leicestershire Partnership NHS Trust,29/09/21,NURSE - BAND 2 - AGENCY,Beaumont Ward - Bradgate Unit,HCL NURSING,HNSI0000803,2347.39
Department of Health,Leicestershire Partnership NHS Trust,29/09/21,NURSE - BAND 5 - AGENCY,Beaumont Ward - Bradgate Unit,HCL NURSING,HNSI0000803,3598.86
Department of Health,Leicestershire Partnership NHS Trust,29/09/21,NURSE - BAND 2 - AGENCY,Belvoir Psychiatric Intensive Care Unit,HCL NURSING,HNSI0000803,3660.32
Department of Health,Leicestershire Partnership NHS Trust,29/09/21,NURSE - BAND 5 - AGENCY,Belvoir Psychiatric Intensive Care Unit,HCL NURSING,HNSI0000803,2946.06
Department of Health,Leicestershire Partnership NHS Trust,29/09/21,NURSE - BAND 2 - AGENCY,Cedar (Willows),HCL NURSING,HNSI0000803,2728.02
Department of Health,Leicestershire Partnership NHS Trust,29/09/21,NURSE - BAND 5 - AGENCY,Cedar (Willows),HCL NURSING,HNSI0000803,500.00
Department of Health,Leicestershire Partnership NHS Trust,29/09/21,Nurse - Band 6 -Agency,City West CMHT MHSOP,HCL NURSING,HNSI0000803,1046.25
Department of Health,Leicestershire Partnership NHS Trust,29/09/21,NURSE - BAND 2 - AGENCY,Coleman Ward,HCL NURSING,HNSI0000803,7069.15
Department of Health,Leicestershire Partnership NHS Trust,29/09/21,NURSE - BAND 5 - AGENCY,Coleman Ward,HCL NURSING,HNSI0000803,9568.04
Department of Health,Leicestershire Partnership NHS Trust,29/09/21,Nurse - Band 6 -Agency,Crisis Resolution,HCL NURSING,HNSI0000803,1736.91
Department of Health,Leicestershire Partnership NHS Trust,29/09/21,NURSE - BAND 2 - AGENCY,Griffin Ward (HPC),HCL NURSING,HNSI0000803,5814.19
Department of Health,Leicestershire Partnership NHS Trust,29/09/21,NURSE - BAND 5 - AGENCY,Griffin Ward (HPC),HCL NURSING,HNSI0000803,1844.70
Department of Health,Leicestershire Partnership NHS Trust,29/09/21,NURSE - BAND 2 - AGENCY,Heather Ward,HCL NURSING,HNSI0000803,1542.59
Department of Health,Leicestershire Partnership NHS Trust,29/09/21,NURSE - BAND 5 - AGENCY,Heather Ward,HCL NURSING,HNSI0000803,700.23
Department of Health,Leicestershire Partnership NHS Trust,29/09/21,NURSE - BAND 2 - AGENCY,Kirby Ward,HCL NURSING,HNSI0000803,1714.75
Department of Health,Leicestershire Partnership NHS Trust,29/09/21,NURSE - BAND 2 - AGENCY,Mill Lodge,HCL NURSING,HNSI0000803,4219.89
Department of Health,Leicestershire Partnership NHS Trust,29/09/21,NURSE - BAND 5 - AGENCY,Mill Lodge,HCL NURSING,HNSI0000803,3973.65
Department of Health,Leicestershire Partnership NHS Trust,29/09/21,NURSE - BAND 2 - AGENCY,Phoenix Ward (HPC),HCL NURSING,HNSI0000803,2407.03
Department of Health,Leicestershire Partnership NHS Trust,29/09/21,NURSE - BAND 5 - AGENCY,Phoenix Ward (HPC),HCL NURSING,HNSI0000803,1000.00
Department of Health,Leicestershire Partnership NHS Trust,29/09/21,NURSE - BAND 2 - AGENCY,Place Of Safety Assessment Unit,HCL NURSING,HNSI0000803,1041.66
Department of Health,Leicestershire Partnership NHS Trust,29/09/21,NURSE - BAND 5 - AGENCY,Place Of Safety Assessment Unit,HCL NURSING,HNSI0000803,984.89
Department of Health,Leicestershire Partnership NHS Trust,29/09/21,NURSE - BAND 2 - AGENCY,Stewart House,HCL NURSING,HNSI0000803,1723.97
Department of Health,Leicestershire Partnership NHS Trust,29/09/21,NURSE - BAND 5 - AGENCY,Stewart House,HCL NURSING,HNSI0000803,536.04
Department of Health,Leicestershire Partnership NHS Trust,29/09/21,NURSE - BAND 2 - AGENCY,Thornton Ward - Bradgate Unit,HCL NURSING,HNSI0000803,344.03
Department of Health,Leicestershire Partnership NHS Trust,29/09/21,NURSE - BAND 2 - AGENCY,Urgent Care Hub,HCL NURSING,HNSI0000803,273.49
Department of Health,Leicestershire Partnership NHS Trust,29/09/21,NURSE - BAND 2 - AGENCY,Watermead Ward (Bradgate Unit),HCL NURSING,HNSI0000803,1273.30
Department of Health,Leicestershire Partnership NHS Trust,29/09/21,NURSE - BAND 5 - AGENCY,Watermead Ward (Bradgate Unit),HCL NURSING,HNSI0000803,514.85
Department of Health,Leicestershire Partnership NHS Trust,29/09/21,NURSE - BAND 2 - AGENCY,Welford Ward,HCL NURSING,HNSI0000803,2177.08
Department of Health,Leicestershire Partnership NHS Trust,29/09/21,NURSE - BAND 5 - AGENCY,Welford Ward,HCL NURSING,HNSI0000803,361.22
Department of Health,Leicestershire Partnership NHS Trust,29/09/21,Nurse - Band 6 -Agency,CAMHS HUB / CAP,HCL SOCIAL CARE,HWSI0000826,11261.31
Department of Health,Leicestershire Partnership NHS Trust,29/09/21,Nurse - Band 6 -Agency,CAMHS Waiting List Monies,HCL SOCIAL CARE,HWSI0000826,20753.54
Department of Health,Leicestershire Partnership NHS Trust,29/09/21,Nurse - Band 6 -Agency,Crisis Response and Home Treatment,HCL SOCIAL CARE,HWSI0000826,1934.86
Department of Health,Leicestershire Partnership NHS Trust,29/09/21,WIP Project Not in BS - Buildings excl Dwellings,Work in Progress,TILBURY DOUGLAS CONSTRUCTION LTD,TMP02435,27236.69
Department of Health,Leicestershire Partnership NHS Trust,29/09/21,WIP Project Not in BS - Buildings excl Dwellings,Work in Progress,TILBURY DOUGLAS CONSTRUCTION LTD,TMP02431,59003.74
Department of Health,Leicestershire Partnership NHS Trust,29/09/21,WIP Project Not in BS - Buildings excl Dwellings,Work in Progress,TILBURY DOUGLAS CONSTRUCTION LTD,TMP02433,51589.32
Department of Health,Leicestershire Partnership NHS Trust,29/09/21,WIP Project Not in BS - Buildings excl Dwellings,Work in Progress,TILBURY DOUGLAS CONSTRUCTION LTD,TMP02434,40248.22
